fUSD/lending_fUSD_20240503
["ID","MTS","AMOUNT","RATE_DAILY","PERIOD"]
[325351289,1714746669654,-500.0,0.00044383,32]
[325351290,1714746669664,-582.35,0.00044383,32]
[325351291,1714746669673,-773.88,0.00044383,32]
[325351292,1714746669682,-500.0,0.00044383,32]
[325351293,1714746669693,-1701.99,0.00044383,32]
[325351294,1714746669702,-500.0,0.00044383,32]
[325351295,1714746669711,-500.0,0.00044383,32]
[325351296,1714746669721,-500.0,0.00044383,32]
[325351297,1714746669730,-500.0,0.00044383,32]
[325351298,1714746669741,-658.0,0.00044383,32]
[325351299,1714746669751,-1163.15,0.00044383,32]
[325351300,1714746669761,-1035.11,0.00044383,32]
[325351301,1714746669770,-500.0,0.00044383,32]
[325351302,1714746669780,-923.02,0.00044383,32]
[325351303,1714746669789,-1311.13,0.00044383,32]
[325351304,1714746669798,-500.0,0.00044383,32]
[325351305,1714746669807,-511.97,0.00044383,32]
[325351306,1714746669816,-861.91,0.00044383,32]
[325351307,1714746669825,-570.85,0.00044383,32]
[325351308,1714746669835,-500.0,0.00044383,32]
[325351309,1714746669844,-1148.44,0.00044383,32]
[325351310,1714746669853,-500.0,0.00044383,32]
[325351311,1714746669862,-906.38,0.00044383,32]
[325351312,1714746669872,-590.49,0.00044383,32]
[325351313,1714746669883,-606.23,0.00044383,32]
[325351314,1714746669893,-1223.93,0.00044383,32]
[325351315,1714746669902,-500.0,0.00044383,32]
[325351316,1714746669912,-1228.91,0.00044383,32]
[325351317,1714746669921,-526.01711016,0.00044383,32]
[325351318,1714746669931,-298.39339498,0.00044383,32]
[325351319,1714746669942,-500.0,0.00044383,32]
[325351320,1714746669951,-500.0,0.00044383,32]
[325351321,1714746669961,-515.93780828,0.00044383,32]
[325351322,1714746669971,-1222.58,0.00044383,32]
[325351323,1714746669980,-500.0,0.00044383,32]
[325351324,1714746669990,-500.0,0.00044383,32]
[325351325,1714746669999,-500.0,0.00044383,32]
[325351326,1714746670008,-500.0,0.00044383,32]
[325351327,1714746670018,-500.0,0.00044383,32]
[325351328,1714746670027,-500.0,0.00044383,32]
[325351329,1714746670037,-1085.79,0.00044383,32]
[325351330,1714746670046,-629.29,0.00044383,32]
[325351331,1714746670056,-1142.25,0.00044383,32]
[325351332,1714746670065,-696.52,0.00044383,32]
[325351333,1714746670074,-669.33,0.00044383,32]
[325351334,1714746670085,-500.0,0.00044383,32]
[325351335,1714746670095,-500.0,0.00044383,32]
[325351336,1714746670104,-1548.35,0.00044383,32]
[325351337,1714746670114,-500.0,0.00044383,32]
[325351338,1714746670123,-500.0,0.00044383,32]
[325351339,1714746670133,-500.0,0.00044383,32]
[325351340,1714746670142,-1181.03,0.00044383,32]
[325351341,1714746670151,-570.76,0.00044383,32]
[325351342,1714746670160,-500.0,0.00044383,32]
[325351343,1714746670169,-500.0,0.00044383,32]
[325351344,1714746670178,-500.0,0.00044383,32]
[325351345,1714746670189,-500.0,0.00044383,32]
[325351346,1714746670198,-1155.63,0.00044383,32]
[325351347,1714746670208,-1465.49,0.00044383,32]
[325351348,1714746670217,-556.2,0.00044383,32]
[325351349,1714746670227,-886.67,0.00044383,32]
[325351350,1714746670237,-515.1,0.00044383,32]
[325351351,1714746670246,-622.32,0.00044383,32]
[325351352,1714746670259,-2110.0,0.00044383,15]
[325351353,1714746670268,-1159.22,0.00044383,32]
[325351354,1714746670278,-1401.63,0.00044383,32]
[325351355,1714746670287,-500.0,0.00044383,32]
[325351356,1714746670296,-720.91,0.00044383,32]
[325351357,1714746670313,-500.0,0.00044383,32]
[325351358,1714746670327,-500.0,0.00044383,32]
[325351359,1714746670337,-823.65,0.00044383,32]
[325351360,1714746670347,-500.0,0.00044383,32]
[325351361,1714746670356,-500.0,0.00044383,32]
[325351362,1714746670366,-1399.37,0.00044383,32]
[325351363,1714746670375,-1162.31,0.00044383,32]
[325351364,1714746670384,-718.76,0.00044383,32]
[325351365,1714746670394,-501.75,0.00044383,32]
[325351366,1714746670403,-500.0,0.00044383,32]
[325351367,1714746670413,-818.42,0.00044383,32]
[325351368,1714746670422,-500.0,0.00044383,32]
[325351369,1714746670432,-500.0,0.00044383,32]
[325351370,1714746670445,-500.0,0.00044383,32]
[325351371,1714746670454,-390.84289614,0.00044383,32]
[325351372,1714746670463,-500.0,0.00044383,32]
[325351373,1714746670473,-500.0,0.00044383,32]
[325351374,1714746670481,-368.82352402,0.00044383,32]
[325351375,1714746670491,-1398.67,0.00044383,32]
[325351376,1714746670500,-517.76,0.00044383,2]
[325351377,1714746670508,-500.0,0.00044383,32]
[325351378,1714746670518,-1543.4,0.00044383,32]
[325351379,1714746670528,-500.0,0.00044383,32]
[325351380,1714746670537,-500.0,0.00044383,32]
[325351381,1714746670546,-500.0,0.00044383,32]
[325351382,1714746670555,-500.0,0.00044383,32]
[325351383,1714746670564,-500.0,0.00044383,32]
[325351384,1714746670574,-500.0,0.00044383,32]
[325351385,1714746670583,-500.0,0.00044383,32]
[325351386,1714746670592,-892.59,0.00044383,32]
[325351387,1714746670601,-500.0,0.00044383,32]
[325351388,1714746670611,-1309.27,0.00044383,32]
[325351389,1714746670621,-534.14,0.00044383,32]
[325351390,1714746670630,-500.0,0.00044383,32]
[325351391,1714746670640,-491.58435507,0.00044383,32]
[325351392,1714746670649,-1314.06,0.00044383,32]
[325351393,1714746670659,-1566.34,0.00044383,32]
[325351394,1714746670668,-433.56193783,0.00044383,32]
[325351395,1714746670677,-1921.77,0.00044383,32]
[325351396,1714746670688,-500.0,0.00044383,32]
[325351397,1714746670697,-500.0,0.00044383,32]
[325351398,1714746670707,-500.0,0.00044383,32]
[325351399,1714746670718,-1286.87,0.00044383,32]
[325351400,1714746670728,-1407.32,0.00044383,32]
[325351401,1714746670738,-500.0,0.00044383,32]
[325351402,1714746670747,-500.0,0.00044383,32]
[325351403,1714746670757,-500.0,0.00044383,32]
[325351404,1714746670767,-1193.46,0.00044383,32]
[325351405,1714746670776,-915.74,0.00044383,32]
[325351406,1714746670786,-2031.66,0.00044383,32]
[325351407,1714746670795,-1305.34,0.00044383,32]
[325351408,1714746670805,-500.0,0.00044383,32]
[325351409,1714746670814,-500.0,0.00044383,32]
[325351410,1714746670824,-500.0,0.00044383,32]
[325351411,1714746670833,-500.0,0.00044383,32]
[325351412,1714746670843,-500.0,0.00044383,32]
[325351413,1714746670852,-500.0,0.00044383,32]
[325351414,1714746670862,-310.08413935,0.00044383,32]
[325351415,1714746670871,-500.0,0.00044383,32]
[325351416,1714746670882,-500.0,0.00044383,32]
[325351417,1714746670892,-500.0,0.00044383,32]
[325351418,1714746670902,-500.0,0.00044383,32]
[325351419,1714746670912,-500.0,0.00044383,32]
[325351420,1714746670922,-1379.8,0.00044383,32]
[325351421,1714746670932,-932.62,0.00044383,32]
[325351422,1714746670950,-2704.12,0.00044383,32]
[325351423,1714746670961,-1116.42,0.00044383,32]
[325351424,1714746670972,-500.0,0.00044383,32]
[325351425,1714746670982,-740.51,0.00044383,32]
[325351426,1714746670992,-1198.75,0.00044383,32]
[325351427,1714746671003,-500.0,0.00044383,32]
[325351428,1714746671013,-973.98,0.00044383,32]
[325351429,1714746671025,-500.0,0.00044383,32]
[325351430,1714746671035,-927.08,0.00044383,32]
[325351431,1714746671046,-500.0,0.00044383,32]
[325351432,1714746671057,-1187.48,0.00044383,32]
[325351433,1714746671067,-500.0,0.00044383,32]
[325351434,1714746671077,-807.98,0.00044383,32]
[325351435,1714746671087,-500.0,0.00044383,32]
[325351436,1714746671098,-1357.83,0.00044383,32]
[325351437,1714746671108,-500.0,0.00044383,32]
[325351438,1714746671118,-500.0,0.00044383,32]
[325351439,1714746671128,-500.0,0.00044383,32]
[325351440,1714746671139,-500.0,0.00044383,32]
[325351441,1714746671149,-967.91,0.00044383,32]
[325351442,1714746671159,-500.0,0.00044383,32]
[325351443,1714746671169,-500.0,0.00044383,32]
[325351444,1714746671179,-500.0,0.00044383,32]
[325351445,1714746671191,-500.0,0.00044383,32]
[325351446,1714746671201,-500.0,0.00044383,32]
[325351447,1714746671212,-214.52,0.00044383,32]
[325351448,1714746671222,-997.21,0.00044383,32]
[325351449,1714746671233,-2201.97,0.00044383,32]
[325351450,1714746671248,-500.0,0.00044383,32]
[325351451,1714746671258,-1302.53,0.00044383,32]
[325351452,1714746671269,-500.0,0.00044383,32]
[325351453,1714746671279,-500.0,0.00044383,32]
[325351454,1714746671290,-500.0,0.00044383,32]
[325351455,1714746671301,-501.94431539,0.00044383,32]
[325351456,1714746671311,-500.0,0.00044383,32]
[325351457,1714746671323,-500.0,0.00044383,32]
[325351458,1714746671335,-1683.59,0.00044383,32]
[325351459,1714746671345,-936.09,0.00044383,32]
[325351460,1714746671355,-500.0,0.00044383,32]
[325351461,1714746671366,-500.0,0.00044383,32]
[325351462,1714746671376,-500.0,0.00044383,32]
[325351463,1714746671387,-500.0,0.00044383,32]
[325351464,1714746671397,-500.0,0.00044383,32]
[325351465,1714746671408,-768.21,0.00044383,32]
[325351466,1714746671419,-500.0,0.00044383,32]
[325351467,1714746671430,-500.0,0.00044383,32]
[325351468,1714746671442,-527.68840432,0.00044383,32]
[325351469,1714746671452,-500.0,0.00044383,32]
[325351470,1714746671463,-1046.45,0.00044383,32]
[325351471,1714746671473,-500.0,0.00044383,32]
[325351472,1714746671484,-2314.8,0.00044383,32]
[325351473,1714746671495,-1106.33,0.00044383,32]
[325351474,1714746671506,-1129.95,0.00044383,32]
[325351475,1714746671516,-1784.6,0.00044383,32]
[325351476,1714746671528,-500.0,0.00044383,32]
[325351477,1714746671538,-500.0,0.00044383,32]
[325351478,1714746671550,-500.0,0.00044383,32]
[325351479,1714746671561,-500.0,0.00044383,32]
[325351480,1714746671571,-500.0,0.00044383,32]
[325351481,1714746671584,-500.0,0.00044383,32]
[325351482,1714746671595,-865.36,0.00044383,32]
[325351483,1714746671606,-500.0,0.00044383,32]
[325351484,1714746671616,-525.89503777,0.00044383,32]
[325351485,1714746671626,-514.76,0.00044383,32]
[325351486,1714746671637,-1068.45,0.00044383,32]
[325351487,1714746671647,-500.0,0.00044383,32]
[325351488,1714746671658,-1098.47,0.00044383,32]
[325351489,1714746671668,-500.0,0.00044383,32]
[325351490,1714746671680,-500.0,0.00044383,32]
[325351491,1714746671692,-500.0,0.00044383,32]
[325351492,1714746671703,-500.0,0.00044383,32]
[325351493,1714746671714,-500.0,0.00044383,32]
[325351494,1714746671725,-502.54012987,0.00044383,32]
[325351495,1714746671736,-500.0,0.00044383,32]
[325351496,1714746671747,-500.0,0.00044383,32]
[325351497,1714746671758,-1783.81,0.00044383,32]
[325351498,1714746671768,-851.49,0.00044383,32]
[325351499,1714746671779,-1513.69,0.00044383,32]
[325351500,1714746671790,-946.34,0.00044383,32]
[325351501,1714746671801,-924.79,0.00044383,32]
[325351502,1714746671811,-1091.37,0.00044383,7]
[325351503,1714746671823,-648.29,0.00044383,32]
[325351504,1714746671834,-500.0,0.00044383,32]
[325351505,1714746671845,-500.0,0.00044383,32]
[325351506,1714746671856,-1098.97,0.00044383,32]
[325351507,1714746671866,-500.0,0.00044383,32]
[325351508,1714746671878,-500.0,0.00044383,32]
[325351509,1714746671889,-1607.8,0.00044383,32]
[325351510,1714746671900,-2082.47,0.00044383,32]
[325351511,1714746671910,-1815.33,0.00044383,32]
[325351512,1714746671921,-1513.58,0.00044383,32]
[325351513,1714746671932,-500.0,0.00044383,32]
[325351514,1714746671945,-500.0,0.00044383,32]
[325351515,1714746671956,-1132.76,0.00044383,32]
[325351516,1714746671966,-1358.0,0.00044383,32]
[325351517,1714746671976,-676.74,0.00044383,32]
[325351518,1714746671987,-500.0,0.00044383,32]
[325351519,1714746671999,-500.0,0.00044383,32]
[325351520,1714746672010,-606.58,0.00044383,32]
[325351521,1714746672021,-2050.03,0.00044383,32]
[325351522,1714746672032,-1203.2,0.00044383,32]
[325351523,1714746672043,-869.59,0.00044383,32]
[325351524,1714746672054,-500.0,0.00044383,32]
[325351525,1714746672065,-500.0,0.00044383,32]
[325351526,1714746672076,-503.63528609,0.00044383,32]
[325351527,1714746672087,-500.0,0.00044383,32]
[325351528,1714746672097,-536.02,0.00044383,32]
[325351529,1714746672108,-777.95,0.00044383,32]
[325351530,1714746672119,-500.0,0.00044383,32]
[325351531,1714746672130,-1008.8,0.00044383,32]
[325351532,1714746672140,-500.0,0.00044383,32]
[325351533,1714746672152,-500.0,0.00044383,32]
[325351534,1714746672162,-500.0,0.00044383,32]
[325351535,1714746672173,-500.0,0.00044383,32]
[325351536,1714746672184,-1301.52,0.00044383,32]
[325351537,1714746672197,-997.14,0.00044383,32]
[325351538,1714746672207,-795.24,0.00044383,32]
[325351539,1714746672218,-1667.27,0.00044383,32]
[325351540,1714746672229,-500.0,0.00044383,32]
[325351541,1714746672240,-2912.02,0.00044383,32]
[325351542,1714746672252,-500.0,0.00044383,32]
[325351543,1714746672263,-500.0,0.00044383,32]
[325351544,1714746672273,-834.7,0.00044383,32]
[325351545,1714746672284,-1742.03,0.00044383,32]
[325351546,1714746672295,-509.18721862,0.00044383,32]
[325351547,1714746672306,-500.0,0.00044383,32]
[325351548,1714746672317,-515.38,0.00044383,32]
[325351549,1714746672328,-918.5,0.00044383,32]
[325351550,1714746672339,-500.0,0.00044383,32]
[325351551,1714746672349,-500.0,0.00044383,32]
[325351552,1714746672359,-1591.37,0.00044383,32]
[325351553,1714746672370,-500.0,0.00044383,32]
[325351554,1714746672381,-500.0,0.00044383,32]
[325351555,1714746672392,-500.0,0.00044383,120]
[325351556,1714746672403,-500.0,0.00044383,32]
[325351557,1714746672413,-907.43,0.00044383,32]
[325351558,1714746672424,-1922.92,0.00044383,32]
[325351559,1714746672435,-510.51,0.00044383,32]
[325351560,1714746672447,-1589.24,0.00044383,32]
[325351561,1714746672457,-1861.31,0.00044383,32]
[325351562,1714746672476,-1091.24,0.00044383,32]
[325351563,1714746672489,-500.0,0.00044383,32]
[325351564,1714746672500,-680.51,0.00044383,32]
[325351565,1714746672511,-1637.34,0.00044383,32]
[325351566,1714746672522,-2206.34,0.00044383,32]
[325351567,1714746672533,-2248.26,0.00044383,32]
[325351568,1714746672544,-584.39,0.00044383,2]
[325351569,1714746672555,-500.0,0.00044383,32]
[325351570,1714746672566,-514.27788101,0.00044383,32]
[325351571,1714746672577,-500.0,0.00044383,32]
[325351572,1714746672588,-1066.92,0.00044383,32]
[325351573,1714746672600,-500.0,0.00044383,32]
[325351574,1714746672611,-554.61,0.00044383,32]
[325351575,1714746672621,-3127.52,0.00044383,32]
[325351576,1714746672632,-2462.7,0.00044383,32]
[325351577,1714746672643,-954.7,0.00044383,32]
[325351578,1714746672654,-500.0,0.00044383,32]
[325351579,1714746672665,-500.0,0.00044383,32]
[325351580,1714746672676,-500.0,0.00044383,32]
[325351581,1714746672687,-500.0,0.00044383,32]
[325351582,1714746672698,-1325.46,0.00044383,32]
[325351583,1714746672708,-501.32,0.00044383,32]
[325351584,1714746672720,-2892.15,0.00044383,32]
[325351585,1714746672731,-168.76414479,0.00044383,32]
[325351586,1714746672743,-500.0,0.00044383,32]
[325351587,1714746672754,-1152.37,0.00044383,32]
[325351588,1714746672765,-1510.35,0.00044383,32]
[325351589,1714746672777,-500.0,0.00044383,32]
[325351590,1714746672788,-300.0,0.00044383,7]
[325351591,1714746672799,-500.0,0.00044383,32]
[325351592,1714746672811,-1265.08,0.00044383,32]
[325351593,1714746672822,-500.0,0.00044383,32]
[325351594,1714746672834,-1251.98,0.00044383,32]
[325351595,1714746672846,-1096.1,0.00044383,32]
[325351596,1714746672858,-2527.88,0.00044383,32]
[325351597,1714746672878,-1163.8,0.00044383,2]
[325351598,1714746672890,-526.23,0.00044383,32]
[325351599,1714746672901,-500.0,0.00044383,32]
[325351600,1714746672912,-500.0,0.00044383,32]
[325351601,1714746672923,-500.0,0.00044383,32]
[325351602,1714746672935,-500.0,0.00044383,32]
[325351603,1714746672950,-1040.83,0.00044383,32]
[325351604,1714746672962,-500.0,0.00044383,32]
[325351605,1714746672973,-844.73,0.00044383,32]
[325351606,1714746672984,-943.84,0.00044383,32]
[325351607,1714746672996,-594.61,0.00044383,32]
[325351608,1714746673008,-500.0,0.00044383,32]
[325351609,1714746673020,-695.37,0.00044383,32]
[325351610,1714746673031,-1282.37,0.00044383,32]
[325351611,1714746673044,-2730.14,0.00044383,32]
[325351612,1714746673056,-1762.26,0.00044383,32]
[325351613,1714746673068,-502.01069286,0.00044383,32]
[325351614,1714746673080,-565.57,0.00044383,32]
[325351615,1714746673091,-1747.07,0.00044383,32]
[325351616,1714746673102,-670.0,0.00044383,32]
[325351617,1714746673112,-500.0,0.00044383,32]
[325351618,1714746673123,-500.0,0.00044383,32]
[325351619,1714746673133,-861.2,0.00044383,32]
[325351620,1714746673144,-1079.96,0.00044383,32]
[325351621,1714746673154,-500.0,0.00044383,32]
[325351622,1714746673164,-1833.76,0.00044383,32]
[325351623,1714746673175,-772.84,0.00044383,32]
[325351624,1714746673186,-669.74,0.00044383,32]
[325351625,1714746673200,-500.0,0.00044383,32]
[325351626,1714746673211,-986.21,0.00044383,32]
[325351627,1714746673221,-500.0,0.00044383,32]
[325351628,1714746673231,-1177.96,0.00044383,32]
[325351629,1714746673245,-500.0,0.00044383,2]
[325351630,1714746673256,-500.0,0.00044383,32]
[325351631,1714746673268,-779.11,0.00044383,32]
[325351632,1714746673607,-1377.21,0.00044383,32]
[325351633,1714746673617,-500.0,0.00044383,32]
[325351634,1714746673627,-3010.68,0.00044383,32]
[325351635,1714746673636,-1149.11,0.00044383,32]
[325351636,1714746673645,-927.97,0.00044383,32]
[325351637,1714746673655,-1689.11,0.00044383,32]
[325351638,1714746673664,-2105.3,0.00044383,32]
[325351639,1714746673673,-500.0,0.00044383,32]
[325351640,1714746673683,-539.96,0.00044383,32]
[325351641,1714746673693,-595.56,0.00044383,32]
[325351642,1714746673702,-500.0,0.00044383,32]
[325351643,1714746673711,-619.57,0.00044383,32]
[325351644,1714746673720,-773.57,0.00044383,32]
[325351645,1714746673729,-500.0,0.00044383,32]
[325351646,1714746673739,-1252.96,0.00044383,32]
[325351647,1714746673748,-1835.84,0.00044383,32]
[325351648,1714746673757,-548.76,0.00044383,32]
[325351649,1714746673767,-1000.08,0.00044383,32]
[325351650,1714746673776,-632.04,0.00044383,32]
[325351651,1714746673786,-3071.93,0.00044383,32]
[325351652,1714746673795,-500.0,0.00044383,32]
[325351653,1714746673804,-500.0,0.00044383,32]
[325351654,1714746673813,-1508.4,0.00044383,32]
[325351655,1714746673823,-1117.0,0.00044383,32]
[325351656,1714746673832,-526.71927908,0.00044383,32]
[325351657,1714746673842,-500.0,0.00044383,32]
[325351658,1714746673852,-691.24,0.00044383,32]
[325351659,1714746673862,-1519.12,0.00044383,32]
[325351660,1714746673871,-1741.6,0.00044383,32]
[325351661,1714746673882,-1841.09,0.00044383,32]
[325351662,1714746673892,-500.0,0.00044383,32]
[325351663,1714746673902,-500.0,0.00044383,32]
[325351664,1714746673913,-1192.32,0.00044383,32]
[325351665,1714746673923,-500.0,0.00044383,32]
[325351666,1714746673934,-500.0,0.00044383,32]
[325351667,1714746673945,-1506.6,0.00044383,32]
[325351668,1714746673955,-500.0,0.00044383,32]
[325351669,1714746673965,-1289.45,0.00044383,32]
[325351670,1714746673976,-1038.43,0.00044383,32]
[325351671,1714746673985,-500.0,0.00044383,32]
[325351672,1714746673995,-500.0,0.00044383,32]
[325351673,1714746674005,-500.0,0.00044383,32]
[325351674,1714746674016,-500.0,0.00044383,32]
[325351675,1714746674025,-765.35,0.00044383,32]
[325351676,1714746674035,-1053.19,0.00044383,32]
[325351677,1714746674044,-2596.94,0.00044383,10]
[325351678,1714746674054,-1713.0,0.00044383,32]
[325351679,1714746674063,-500.0,0.00044383,32]
[325351680,1714746674073,-1196.68,0.00044383,32]
[325351681,1714746674082,-520.25,0.00044383,32]
[325351682,1714746674091,-530.97,0.00044383,32]
[325351683,1714746674101,-1512.32,0.00044383,32]
[325351684,1714746674110,-500.0,0.00044383,32]
[325351685,1714746674120,-500.0,0.00044383,32]
[325351686,1714746674129,-614.73,0.00044383,32]
[325351687,1714746674139,-767.38,0.00044383,32]
[325351688,1714746674149,-500.0,0.00044383,32]
[325351689,1714746674160,-2049.33,0.00044383,32]
[325351690,1714746674171,-500.0,0.00044383,32]
[325351691,1714746674181,-1448.03,0.00044383,32]
[325351692,1714746674194,-1279.38,0.00044383,32]
[325351693,1714746674204,-500.0,0.00044383,32]
[325351694,1714746674214,-500.0,0.00044383,32]
[325351695,1714746674223,-1508.95,0.00044383,32]
[325351696,1714746674233,-500.0,0.00044383,32]
[325351697,1714746674244,-2414.27,0.00044383,32]
[325351698,1714746674256,-586.94574395,0.00044383,32]
[325351699,1714746674266,-500.0,0.00044383,32]
[325351700,1714746674276,-1281.05,0.00044383,32]
[325351701,1714746674287,-2804.83,0.00044383,2]
[325351702,1714746674297,-785.84,0.00044383,32]
[325351703,1714746674307,-500.0,0.00044383,32]
[325351704,1714746674317,-500.0,0.00044383,32]
[325351705,1714746674332,-186.23596096,0.00044383,32]
[325351706,1714746674342,-1300.51,0.00044383,32]
[325351707,1714746674353,-500.0,0.00044383,32]
[325351708,1714746674363,-500.0,0.00044383,32]
[325351709,1714746674374,-1419.96,0.00044383,32]
[325351710,1714746674383,-500.0,0.00044383,32]
[325351711,1714746674393,-500.0,0.00044383,32]
[325351712,1714746674403,-500.0,0.00044383,32]
[325351713,1714746674413,-2095.85,0.00044383,32]
[325351714,1714746674422,-798.1,0.00044383,32]
[325351715,1714746674433,-500.0,0.00044383,32]
[325351716,1714746674445,-500.0,0.00044383,32]
[325351717,1714746674455,-4130.2,0.00044383,32]
[325351718,1714746674465,-500.0,0.00044383,32]
[325351719,1714746674475,-500.0,0.00044383,32]
[325351720,1714746674484,-533.39,0.00044383,32]
[325351721,1714746674495,-1527.63,0.00044383,32]
[325351722,1714746674505,-500.0,0.00044383,32]
[325351723,1714746674514,-500.0,0.00044383,32]
[325351724,1714746674524,-503.3,0.00044383,32]
[325351725,1714746674533,-500.0,0.00044383,32]
[325351726,1714746674543,-500.0,0.00044383,32]
[325351727,1714746674552,-500.0,0.00044383,32]
[325351728,1714746674561,-1026.61,0.00044383,32]
[325351729,1714746674571,-500.0,0.00044383,32]
[325351730,1714746674580,-1680.25,0.00044383,32]
[325351731,1714746674589,-1248.76,0.00044383,32]
[325351732,1714746674599,-1754.66,0.00044383,32]
[325351733,1714746674608,-1088.42,0.00044383,32]
[325351734,1714746674617,-816.08,0.00044383,32]
[325351735,1714746674627,-500.0,0.00044383,32]
[325351736,1714746674637,-626.08,0.00044383,32]
[325351737,1714746674646,-500.0,0.00044383,32]
[325351738,1714746674656,-604.71,0.00044383,32]
[325351739,1714746674665,-1484.42,0.00044383,32]
[325351740,1714746674675,-500.0,0.00044383,32]
[325351741,1714746674684,-500.0,0.00044383,32]
[325351742,1714746674695,-2466.43,0.00044383,32]
[325351743,1714746674704,-500.0,0.00044383,32]
[325351744,1714746674714,-2917.56,0.00044383,32]
[325351745,1714746674723,-1243.84,0.00044383,32]
[325351746,1714746674732,-500.0,0.00044383,32]
[325351747,1714746674742,-548.97624876,0.00044383,32]
[325351748,1714746674752,-500.0,0.00044383,32]
[325351749,1714746674761,-500.0,0.00044383,32]
[325351750,1714746674771,-297.47283095,0.00044383,32]
[325351751,1714746674781,-666.96,0.00044383,32]
[325351752,1714746674791,-2990.02,0.00044383,32]
[325351753,1714746674801,-1546.33,0.00044383,32]
[325351754,1714746674810,-743.67,0.00044383,32]
[325351755,1714746674820,-1568.11,0.00044383,30]
[325351756,1714746674830,-502.66257831,0.00044383,32]
[325351757,1714746674839,-2248.08,0.00044383,32]
[325351758,1714746674849,-527.61,0.00044383,32]
[325351759,1714746674860,-500.0,0.00044383,32]
[325351760,1714746674870,-1825.81,0.00044383,32]
[325351761,1714746674881,-714.99,0.00044383,32]
[325351762,1714746674892,-551.77,0.00044383,32]
[325351763,1714746674902,-1083.3,0.00044383,32]
[325351764,1714746674911,-1678.8,0.00044383,32]
[325351765,1714746674921,-557.4,0.00044383,32]
[325351766,1714746674932,-500.0,0.00044383,32]
[325351767,1714746674943,-1321.39,0.00044383,32]
[325351768,1714746674952,-1760.61,0.00044383,32]
[325351769,1714746674961,-500.0,0.00044383,2]
[325351770,1714746674971,-1660.3,0.00044383,32]
[325351771,1714746674980,-500.0,0.00044383,32]
[325351772,1714746674990,-500.0,0.00044383,32]
[325351773,1714746674999,-500.0,0.00044383,32]
[325351774,1714746675008,-500.0,0.00044383,32]
[325351775,1714746675018,-689.28,0.00044383,32]
[325351776,1714746675029,-500.0,0.00044383,32]
[325351777,1714746675038,-500.0,0.00044383,32]
[325351778,1714746675048,-500.0,0.00044383,32]
[325351779,1714746675058,-521.94,0.00044383,32]
[325351780,1714746675068,-1335.29,0.00044383,32]
[325351781,1714746675077,-563.94,0.00044383,32]
[325351782,1714746675086,-500.0,0.00044383,32]
[325351783,1714746675095,-506.37836002,0.00044383,32]
[325351784,1714746675104,-500.0,0.00044383,32]
[325351785,1714746675114,-500.0,0.00044383,32]
[325351786,1714746675124,-500.0,0.00044383,32]
[325351787,1714746675133,-642.25,0.00044383,32]
[325351788,1714746675142,-1950.2,0.00044383,32]